bitfinex/quotes_SOLUSD_20251024
["timestamp","ask_amount","ask_price","bid_price","bid_amount"]
[1761275071252,36.89,192.14,192.05,0.1]
[1761275071562,36.89,192.14,192.05,0.8]
[1761275071563,1.66715745,192.09,192.05,0.8]
[1761275071863,1.66715745,192.1,192.06,0.7]
[1761275072033,1.66715745,192.09,192.06,0.7]
[1761275073049,1.66715745,192.08,192.05,0.1]
[1761275073359,1.66715745,192.07,192.05,0.1]
[1761275073782,2.37715745,192.06,192.05,0.1]
[1761275074763,1.66715745,192.06,192.05,0.1]
[1761275075461,1.66715745,192.06,192.02,0.1]
[1761275075462,30.46386368,192.06,192.02,0.1]
[1761275075666,0.71,192.05,192.02,0.1]
[1761275075864,36.48,192.04,192.02,0.1]
[1761275076262,1.66715745,192.03,192.02,0.1]
[1761275076768,2.37715745,192.03,192.02,0.1]
[1761275077354,1.66715745,192.03,192.02,0.1]
[1761275078863,1.66715745,192.03,192.02,0.8]
[1761275081361,1.66715745,192.05,192.02,6.00779085]
[1761275081781,1.66715745,192.05,192.03,0.71]
[1761275082382,1.66715745,192.05,192.03,5.91738761]
[1761275082590,1.66715745,192.06,192.03,5.91738761]
[1761275083069,1.66715745,192.06,192.04,0.71]
[1761275084179,1.66715745,192.08,192.04,5.91714303]
[1761275084684,1.66715745,192.08,192.05,0.71]
[1761275085667,1.66715745,192.08,192.05,5.91685628]
[1761275086076,1.66715745,192.08,192.06,0.71]
[1761275086263,1.66715745,192.08,192.05,5.20685628]
[1761275086583,1.66715745,192.07,192.05,5.91685628]
[1761275086768,1.66715745,192.07,192.03,16.79399486]
[1761275086967,1.66715745,192.06,192.03,16.79399486]
[1761275087177,1.66715745,192.06,192.03,16.08399486]
[1761275087370,1.66715745,192.06,192.04,0.71]
[1761275087881,1.66715745,192.06,192.05,5.20697734]
[1761275089680,1.66715745,192.06,192.04,5.20724848]
[1761275091061,1.66715745,192.06,192.05,0.71]
[1761275091492,1.66715745,192.06,192.04,5.20724848]
[1761275091680,1.66715745,192.06,192.04,5.91724848]
[1761275093280,1.66715745,192.08,192.05,0.71]
[1761275093470,1.66715745,192.09,192.05,0.71]
[1761275093867,36.48,192.1,192.05,0.71]
[1761275094070,1.66715745,192.09,192.05,0.71]
[1761275094661,1.66715745,192.09,192.06,5.20670623]
[1761275095063,1.66715745,192.08,192.06,5.20670623]
[1761275095758,1.66715745,192.08,192.06,5.91670623]
[1761275096081,1.66715745,192.09,192.07,0.71]
[1761275096272,1.66715745,192.09,192.06,5.91670623]
[1761275097387,1.66715745,192.09,192.04,5.20724848]
[1761275097588,1.66715745,192.09,192.06,0.71]
[1761275098693,1.66715745,192.09,192.06,5.91656586]
[1761275100089,2.35715745,192.09,192.06,5.91656586]
[1761275100274,2.35715745,192.09,192.04,5.91724848]
[1761275100669,1.66715745,192.09,192.04,5.91724848]
[1761275100871,1.66715745,192.09,192.05,0.71]
[1761275101377,23.57,192.11,192.05,0.71]
[1761275101378,1.66715745,192.08,192.05,0.71]
[1761275102076,1.66715745,192.12,192.07,1.66715745]
[1761275102267,1.66715745,192.12,192.08,5.91616409]
[1761275102786,1.66715745,192.12,192.09,0.71]
[1761275103785,64.48400159,192.16,192.08,5.20616409]
[1761275103786,1.66715745,192.1,192.08,5.20616409]
[1761275103970,1.66715745,192.09,192.08,5.20616409]
[1761275105291,0.69,192.12,192.08,5.20616409]
[1761275105466,1.66715745,192.1,192.08,5.20616409]
[1761275106603,59.28,192.16,192.07,0.71]
[1761275106604,1.66715745,192.13,192.09,0.71]
[1761275107386,1.66715745,192.11,192.07,11.58647521]
[1761275107682,1.66715745,192.1,192.08,5.20616409]
[1761275108191,0.69,192.1,192.08,5.20616409]
[1761275109391,1.66715745,192.11,192.08,5.20616409]
[1761275109589,2.35715745,192.12,192.08,0.71]
[1761275109785,1.66715745,192.13,192.09,0.71]
[1761275110287,2.35715745,192.14,192.09,0.71]
[1761275110491,1.66715745,192.13,192.08,10.87647521]
[1761275110677,3.29297425,192.13,192.08,10.87647521]
[1761275110872,0.69,192.13,192.08,11.58647521]
[1761275111079,0.69,192.13,192.09,0.71]
[1761275111285,2.60297425,192.14,192.09,0.71]
[1761275111600,0.71,192.16,192.1,5.20562207]
[1761275111795,22.88,192.17,192.1,5.20562207]
[1761275112001,25.48297425,192.17,192.11,0.71]
[1761275112189,3.88595204,192.16,192.11,0.71]
[1761275112387,3.31297425,192.16,192.11,0.71]
[1761275112588,0.71,192.15,192.11,0.71]
[1761275113593,3.31297425,192.15,192.07,35.2894764]
[1761275113796,2.60297425,192.13,192.08,0.71]
[1761275114196,3.31297425,192.13,192.08,0.71]
[1761275114792,3.31297425,192.13,192.09,10.87647521]
[1761275114994,0.71,192.13,192.09,10.87647521]
[1761275116706,0.71,192.13,192.1,5.20562207]
[1761275120706,3.31297425,192.13,192.1,5.20562207]
[1761275120905,0.71,192.13,192.1,5.20562207]
[1761275121489,0.71,192.13,192.1,0.71]
[1761275121813,2.60297425,192.14,192.1,0.71]
[1761275122317,3.31297425,192.14,192.1,0.71]
[1761275123210,3.31297425,192.14,192.11,5.2053511]
[1761275127914,3.31297425,192.14,192.08,18.22157433]
[1761275128116,3.32297425,192.16,192.11,0.67]
[1761275128321,3.89257333,192.15,192.11,0.67]
[1761275128617,3.32297425,192.16,192.11,0.67]
[1761275128801,3.89234716,192.15,192.11,0.67]
[1761275129006,25.48297425,192.17,192.11,0.67]
[1761275129815,3.89155579,192.16,192.11,0.67]
[1761275129995,26.20297425,192.17,192.12,5.20508015]
[1761275130197,3.89159909,192.16,192.12,5.20508015]
[1761275130416,25.48297425,192.17,192.13,0.67]
[1761275130620,3.89126394,192.16,192.13,0.67]
[1761275130826,26.20297425,192.17,192.13,0.67]
[1761275131010,3.89126335,192.16,192.13,0.67]
[1761275131323,26.20297425,192.17,192.13,5.87467084]
[1761275131523,3.89100105,192.16,192.13,5.87467084]
[1761275131715,3.89100105,192.16,192.14,0.67]
[1761275131901,3.89100105,192.16,192.13,5.87467084]
[1761275132823,3.89100105,192.16,192.1,18.21925789]
[1761275133025,3.89100105,192.16,192.14,0.67]
[1761275137531,3.89100105,192.16,192.14,5.87453515]
[1761275138136,3.32297425,192.19,192.15,0.67]
[1761275138523,3.32297425,192.18,192.15,0.67]
[1761275138726,3.32297425,192.18,192.14,5.87453515]
[1761275139429,2.60297425,192.17,192.14,5.87453515]
[1761275139931,3.32297425,192.17,192.14,5.87453515]
[1761275140426,2.60297425,192.17,192.14,5.87453515]
[1761275141635,3.32297425,192.17,192.14,5.87453515]
[1761275141835,3.32297425,192.17,192.12,13.01236238]
[1761275142017,3.32297425,192.17,192.13,0.72]
[1761275144339,2.60297425,192.17,192.14,5.20453835]
[1761275144722,2.60297425,192.17,192.14,5.92453835]
[1761275145139,3.32297425,192.17,192.14,5.92453835]
[1761275146238,3.32297425,192.17,192.12,13.01236238]
[1761275146539,3.32297425,192.17,192.13,0.72]
[1761275147436,0.72,192.16,192.14,5.20453835]
[1761275148043,2.60297425,192.15,192.13,5.20479075]
[1761275148521,0.72,192.14,192.13,5.20479075]
[1761275149729,0.72,192.14,192.11,5.2053511]
[1761275150447,2.60297425,192.13,192.08,0.72]
[1761275150622,3.32297425,192.14,192.07,11.59647521]
[1761275150822,0.72,192.13,192.07,11.59647521]
[1761275151140,0.72,192.13,192.08,0.72]
[1761275151323,3.32297425,192.13,192.09,5.20589307]
[1761275151738,0.72,192.12,192.09,5.20589307]
[1761275153040,3.32297425,192.14,192.09,0.72]
[1761275153216,2.60297425,192.14,192.09,0.72]
[1761275153416,0.72,192.13,192.09,0.72]
[1761275154148,0.72,192.13,192.1,5.20562207]
[1761275154339,3.32297425,192.14,192.1,5.20562207]
[1761275154529,3.32297425,192.14,192.1,5.92562207]
[1761275154732,0.72,192.13,192.1,5.92562207]
[1761275154931,0.72,192.13,192.1,5.20562207]
[1761275155127,0.72,192.13,192.1,5.92562207]
[1761275156057,0.72,192.13,192.1,5.20562207]
[1761275157754,2.60297425,192.11,192.06,0.72]
[1761275158160,0.72,192.1,192.07,5.20643515]
[1761275160774,0.72,192.1,192.06,5.92670623]
[1761275161149,0.72,192.1,192.06,5.20670623]
[1761275161351,0.72,192.1,192.07,0.72]
[1761275162173,0.72,192.1,192.08,5.20616409]
[1761275162376,0.72,192.1,192.07,5.20642425]
[1761275163959,0.72,192.1,192.06,5.20670623]
[1761275164164,2.60297425,192.11,192.07,0.72]
[1761275164347,0.72,192.11,192.07,0.72]
[1761275165058,0.72,192.11,192.08,5.20616409]
[1761275165365,6.49655175,192.12,192.08,5.20616409]
[1761275165563,0.72,192.12,192.09,0.72]
[1761275166573,2.60297425,192.13,192.09,0.72]
[1761275166779,3.89291114,192.12,192.09,0.72]
[1761275166974,3.32297425,192.13,192.09,0.72]
[1761275167154,3.89291177,192.12,192.09,0.72]
[1761275167350,2.60297425,192.15,192.09,5.92575192]
[1761275167561,104.60297425,192.2,192.09,5.92575192]
[1761275167562,3.32297425,192.13,192.09,5.92575192]
[1761275168065,0.72,192.13,192.09,5.92575192]
[1761275168266,3.32297425,192.13,192.09,5.92575192]
[1761275168788,0.72,192.12,192.09,5.92575192]
[1761275169154,0.72,192.12,192.09,5.20575192]
[1761275171464,3.32297425,192.12,192.09,5.20575192]
[1761275171983,3.32297425,192.12,192.06,13.0162628]
[1761275171984,0.7,192.11,192.06,18.94296903]
[1761275172187,2.60297425,192.1,192.06,18.94296903]
[1761275172489,2.60297425,192.09,192.06,5.92670623]
[1761275172660,1.66668211,192.09,192.06,5.92670623]
[1761275172851,2.36668211,192.09,192.06,5.92670623]
[1761275173584,0.7,192.09,192.06,5.92670623]
[1761275173885,1.66668211,192.1,192.04,18.2253697]
[1761275174206,1.66668211,192.1,192.07,0.72]
[1761275174485,37.90668211,192.12,192.07,0.72]
[1761275174859,38.60668211,192.12,192.07,0.72]
[1761275175055,37.90668211,192.12,192.07,0.72]
[1761275175378,2.36668211,192.11,192.07,0.72]
[1761275175881,2.36668211,192.11,192.07,5.92624104]
[1761275176183,22.88,192.14,192.07,5.92624104]
[1761275176356,1.66668211,192.12,192.08,0.72]
[1761275176861,2.36668211,192.12,192.08,0.72]
[1761275177483,1.66668211,192.12,192.08,5.92590973]
[1761275177685,0.7,192.11,192.08,5.92590973]
[1761275178176,1.66668211,192.13,192.09,0.72]
[1761275178567,2.36668211,192.13,192.09,0.72]
[1761275179378,2.36668211,192.13,192.09,5.92580135]
[1761275179983,2.36668211,192.13,192.1,0.72]
[1761275180380,0.7,192.13,192.1,0.72]
[1761275180587,3.889877,192.13,192.1,5.9255996]
[1761275180888,5.55655911,192.13,192.1,5.9255996]
[1761275181065,1.66668211,192.13,192.1,5.9255996]
[1761275181874,2.36668211,192.13,192.1,5.9255996]
[1761275182477,0.7,192.12,192.08,13.73528275]
[1761275182680,2.36668211,192.12,192.08,0.72]
[1761275183192,1.66668211,192.11,192.08,0.72]
[1761275183791,1.66668211,192.09,192.05,13.01687412]
[1761275183990,0.7,192.1,192.02,11.69647521]
[1761275183991,1.66668211,192.07,192.02,11.69647521]
[1761275184386,0.7,192.06,192.02,11.69647521]
[1761275184585,2.36668211,192.06,192.02,11.69647521]
[1761275184788,2.36668211,192.06,192.03,0.72]
[1761275185095,2.36668211,192.06,192.03,5.92751965]
[1761275185468,0.7,192.06,192.03,5.92751965]
[1761275185669,2.36668211,192.05,192.02,5.30777245]
[1761275186267,1.66668211,192.04,192.02,5.30777245]
[1761275187194,2.36668211,192.04,192.02,0.1]
[1761275187389,1.66668211,192.04,192.02,0.1]
[1761275187696,2.35668211,192.03,192.02,0.1]
[1761275189496,1.66668211,192.03,192.02,0.1]
[1761275189695,1.66668211,192.04,192.02,0.1]
[1761275189892,1.66668211,192.03,192.02,0.1]
[1761275190487,2.35668211,192.03,192.02,0.1]
[1761275191781,2.35668211,192.03,191.93,5.31022868]
[1761275191782,22.88,192.0,191.93,5.31022868]
[1761275191981,40.12886322,191.99,191.95,0.7]
[1761275192186,36.93,191.99,191.95,0.7]
[1761275192982,36.93,191.99,191.95,5.90968019]
[1761275193183,0.69,191.98,191.95,0.7]
[1761275193386,2.35668211,191.98,191.95,5.90966951]
[1761275193586,38.59668211,191.99,191.95,5.90966951]
[1761275193790,38.59668211,191.99,191.96,0.7]
[1761275194504,0.5,191.98,191.96,0.7]
[1761275195006,0.5,191.98,191.94,5.90996144]
[1761275195399,0.5,191.98,191.95,0.7]
[1761275195702,2.16668211,191.98,191.95,0.7]
[1761275196486,0.5,191.98,191.95,5.90958989]
[1761275196886,0.5,191.98,191.96,0.7]
[1761275197495,2.35668211,191.99,191.96,0.7]
[1761275197496,36.28,192.0,191.96,0.7]
[1761275197914,1.66668211,192.02,191.96,0.7]
[1761275198408,1.66668211,192.02,191.97,5.20914726]
[1761275198797,1.66668211,192.02,191.98,0.7]
[1761275199193,2.35668211,192.02,191.98,0.7]
[1761275199508,2.35668211,192.02,191.98,5.90870619]
[1761275199814,1.66668211,192.02,191.98,5.90870619]
[1761275200003,36.28,192.03,191.99,0.7]
[1761275200195,36.97,192.03,191.99,0.7]
[1761275200398,1.66668211,192.02,191.99,0.7]
[1761275201314,2.34668211,192.02,191.99,0.68]
[1761275201692,37.94668211,192.03,191.99,5.88855637]
[1761275201906,38.62668211,192.03,191.99,5.88855637]
[1761275202606,37.94668211,192.03,191.99,5.20855637]
[1761275202812,38.62668211,192.03,192.0,0.68]
[1761275203492,38.62668211,192.03,192.0,5.88824782]
[1761275203691,28.65977359,192.08,192.01,12.54315732]
[1761275203692,0.68,192.08,192.01,12.54315732]
[1761275203998,2.34668211,192.08,192.01,13.22315732]
[1761275204312,1.66668211,192.07,192.02,16.32006985]
[1761275204515,1.66668211,192.06,192.02,16.32006985]
[1761275204700,2.34668211,192.07,192.03,0.68]
[1761275204901,2.34668211,192.07,192.03,16.32006985]
[1761275205502,0.68,192.07,192.04,5.88724848]
[1761275205699,0.68,192.07,192.04,5.20724848]
[1761275207010,2.34668211,192.07,192.03,5.88751021]
[1761275207215,1.66668211,192.06,192.03,5.88751021]
[1761275207508,2.34668211,192.07,192.03,5.88751021]
[1761275208090,0.68,192.06,192.03,5.88751021]
[1761275209892,2.34668211,192.08,192.04,0.68]
[1761275210314,0.68,192.07,192.04,0.68]
[1761275210501,0.68,192.07,192.03,5.20751021]
[1761275210702,0.68,192.07,192.03,5.88751021]
[1761275211402,0.68,192.07,192.04,5.88712863]
[1761275213608,2.34668211,192.08,192.04,5.88712863]
[1761275214220,0.68,192.11,192.05,0.68]
[1761275214417,0.68,192.11,192.05,2.34668211]
[1761275214714,0.68,192.11,192.06,0.68]
[1761275214900,17.35996504,192.12,192.06,0.68]
[1761275215499,22.88,192.11,192.06,0.68]
[1761275215925,23.56,192.11,192.06,0.68]
[1761275216313,0.68,192.1,192.06,5.88647726]
[1761275217010,2.34668211,192.1,192.06,5.88647726]
[1761275217527,1.66668211,192.08,192.04,15.63762412]
[1761275217735,1.66668211,192.07,192.02,18.90726798]
[1761275218110,2.34668211,192.07,192.03,0.68]
[1761275218434,2.34668211,192.07,192.02,18.90726798]
[1761275218435,0.68,192.06,192.02,18.90726798]
[1761275218838,0.68,192.06,192.03,0.68]
[1761275219012,1.66668211,192.07,192.03,0.68]
[1761275219319,0.68,192.07,192.03,5.88727572]
[1761275220030,0.68,192.06,192.03,5.20727572]
[1761275221224,2.34668211,192.08,192.03,0.68]
[1761275221432,2.34668211,192.09,192.03,0.68]
[1761275221612,0.68,192.08,192.03,0.68]
[1761275222315,2.34668211,192.08,192.03,0.68]
[1761275223038,2.34668211,192.08,192.04,5.20724848]
[1761275223341,0.68,192.07,192.04,5.20724848]
[1761275225940,0.68,192.07,192.04,0.68]
[1761275226544,5.20603512,192.09,192.04,0.68]
[1761275226545,1.66668211,192.09,192.04,0.68]
[1761275227016,2.34668211,192.09,192.04,0.68]
[1761275227218,2.34668211,192.09,192.05,5.20697734]
[1761275227420,37.94668211,192.1,192.05,5.20697734]
[1761275227642,37.94668211,192.1,192.06,0.68]
[1761275228012,0.68,192.09,192.06,0.68]
[1761275228726,37.94668211,192.1,192.06,0.68]
[1761275228914,38.62668211,192.1,192.06,0.68]
[1761275229117,37.94668211,192.1,192.06,0.68]
[1761275229423,0.68,192.09,192.06,5.88655416]
[1761275229623,38.62668211,192.1,192.06,5.88655416]
[1761275229824,38.62668211,192.1,192.06,5.20655416]
[1761275230029,38.62668211,192.1,192.07,0.68]
[1761275231426,37.94668211,192.1,192.07,0.68]
[1761275231625,38.61668211,192.1,192.07,0.68]
[1761275232018,37.94668211,192.1,192.07,5.88641318]
[1761275232341,36.28,192.1,192.07,5.88641318]
[1761275232516,36.28,192.1,192.08,0.7]
[1761275233116,36.28,192.1,192.08,5.9060014]
[1761275233544,36.28,192.1,192.09,0.7]
[1761275236345,54.42468148,192.13,192.09,5.90589307]
[1761275236524,51.82135741,192.13,192.09,5.90589307]
[1761275236716,51.82135741,192.13,192.1,0.7]
[1761275236717,38.86332407,192.13,192.1,0.7]
[1761275236923,39.53332407,192.13,192.1,0.7]
[1761275237222,38.86332407,192.13,192.1,0.7]
[1761275238949,38.86332407,192.13,192.1,5.90558576]
[1761275240022,36.26,192.13,192.1,5.90558576]
[1761275240222,141.51332407,192.15,192.12,5.20508015]
[1761275240529,156.63872078,192.15,192.09,5.20589307]
[1761275240739,157.30872078,192.15,192.09,5.90589307]
[1761275241045,157.30872078,192.15,192.1,0.7]
[1761275241229,54.63872078,192.15,192.1,0.7]
[1761275241431,4.55686048,192.14,192.1,0.7]
[1761275241736,7.16018455,192.14,192.1,0.7]
[1761275241939,3.27332407,192.14,192.1,0.7]
[1761275243250,38.84332407,192.15,192.11,5.2053511]
[1761275243428,3.88826924,192.14,192.11,5.2053511]
[1761275243629,3.88826924,192.14,192.11,5.9053511]
[1761275244928,3.27332407,192.13,192.11,5.2053511]
[1761275245342,3.27332407,192.13,192.1,5.20562207]
[1761275245642,2.60332407,192.12,192.1,5.20562207]
[1761275246857,2.60332407,192.12,192.08,13.01503672]
[1761275247146,2.60332407,192.12,192.1,0.7]
[1761275247648,2.60332407,192.12,192.08,13.70503672]
[1761275247847,2.60332407,192.12,192.09,0.69]
[1761275248045,2.60332407,192.12,192.1,5.20562207]
[1761275249845,2.60332407,192.12,192.1,0.69]
[1761275250245,2.60332407,192.12,192.08,13.01503672]
[1761275250650,2.60332407,192.12,192.09,0.69]
[1761275250953,2.60332407,192.13,192.1,5.20562207]
[1761275253356,0.68,192.14,192.1,5.20562207]
[1761275253652,6.49539902,192.13,192.1,0.69]
[1761275253864,2.60332407,192.13,192.1,0.69]
[1761275254561,3.28332407,192.13,192.1,5.89540641]
[1761275254861,7.17560277,192.12,192.07,5.89643515]
[1761275255050,6.49566969,192.11,192.07,5.89643515]
[1761275255254,3.28332407,192.11,192.07,5.89643515]
[1761275255561,3.28332407,192.1,192.07,5.20643515]
[1761275256536,2.60332407,192.1,192.06,5.89670623]
[1761275256861,3.28332407,192.09,192.06,5.89670623]
[1761275257668,2.60332407,192.1,192.07,0.69]
[1761275258555,2.60332407,192.1,192.07,5.8962085]
[1761275258869,3.28332407,192.1,192.07,5.8962085]
[1761275259971,3.28332407,192.1,192.05,13.01686012]
[1761275259972,0.68,192.09,192.05,13.70686012]
[1761275260636,0.68,192.09,192.05,13.01686012]
[1761275260961,3.32332407,192.1,192.07,5.20643515]
[1761275261559,0.72,192.09,192.07,5.20643515]
[1761275261782,125.6,192.15,192.08,0.72]
[1761275261977,4.6142905,192.14,192.08,3.32332407]
[1761275262145,4.6142905,192.14,192.08,0.72]
[1761275262146,3.8942905,192.13,192.08,0.72]
[1761275262475,3.89397476,192.12,192.09,0.72]
[1761275262670,2.60332407,192.13,192.09,0.72]
[1761275262977,3.89406233,192.12,192.1,5.20562207]
[1761275263142,3.32332407,192.13,192.1,5.20562207]
[1761275263342,3.89406207,192.12,192.1,5.20562207]
[1761275263569,3.32332407,192.13,192.1,5.20562207]
[1761275263763,3.89434926,192.12,192.1,5.20562207]
[1761275263964,3.32332407,192.13,192.1,5.20562207]
[1761275264270,3.89434926,192.12,192.1,5.20562207]
[1761275264439,2.60332407,192.13,192.1,0.72]
[1761275264645,3.89463727,192.12,192.1,0.72]
[1761275264850,2.60332407,192.13,192.1,0.72]
[1761275265146,3.89468024,192.12,192.1,0.72]
[1761275265346,2.60332407,192.13,192.1,0.72]
[1761275265670,3.89475203,192.12,192.1,5.92536309]
[1761275265970,3.32332407,192.13,192.1,5.92536309]
[1761275266169,3.89475246,192.12,192.1,5.92536309]
[1761275266373,3.32332407,192.13,192.1,5.92536309]
[1761275266563,3.89513345,192.12,192.1,5.92536309]
[1761275266767,3.32332407,192.13,192.1,5.92536309]
[1761275266966,3.89513315,192.12,192.1,5.92536309]
[1761275267166,3.32332407,192.13,192.1,5.92536309]
[1761275267347,3.89513315,192.12,192.1,5.92536309]
[1761275267674,3.32332407,192.12,192.1,5.20536309]
[1761275267852,2.60332407,192.12,192.1,5.20536309]
[1761275268668,3.32332407,192.12,192.09,5.20589307]
[1761275269582,0.72,192.12,192.09,5.92589307]
[1761275269876,2.60332407,192.13,192.09,5.92589307]
[1761275270179,3.89661133,192.12,192.09,5.92589307]
[1761275270379,3.89724561,192.11,192.09,5.92589307]
[1761275270595,3.32332407,192.13,192.09,5.92589307]
[1761275270880,3.89724591,192.12,192.09,5.92589307]
[1761275271085,3.89724591,192.11,192.09,5.92589307]
[1761275271277,3.32332407,192.13,192.09,5.92589307]
[1761275271477,4.61819405,192.12,192.09,5.92589307]
[1761275271680,3.89819405,192.11,192.09,5.92589307]
[1761275271989,0.72,192.12,192.09,5.92589307]
[1761275272195,3.89819405,192.11,192.09,5.92589307]
[1761275272382,0.72,192.12,192.09,5.92589307]
[1761275272684,3.89877738,192.11,192.09,5.92589307]
[1761275272890,0.72,192.12,192.09,5.92589307]
[1761275273183,3.89877708,192.11,192.09,5.92589307]
[1761275273410,2.60332407,192.13,192.1,0.72]
[1761275273687,3.89930883,192.12,192.1,0.72]
[1761275273888,3.89930883,192.11,192.1,0.72]
[1761275275786,3.89930883,192.11,192.1,5.92562207]
[1761275277194,2.60332407,192.13,192.1,5.92562207]
[1761275277385,3.90142475,192.12,192.07,18.22252303]
[1761275277580,3.32332407,192.14,192.11,0.72]
[1761275277783,3.90198228,192.13,192.11,0.72]
[1761275277980,3.90198228,192.12,192.11,0.72]
[1761275278974,3.90198228,192.12,192.11,5.9253511]
[1761275283582,36.24,192.16,192.11,5.9253511]
[1761275283782,3.90160994,192.15,192.13,5.20480924]
[1761275283997,3.90160994,192.14,192.13,5.20480924]
[1761275284197,3.90160994,192.14,192.13,5.92480924]
[1761275286696,13.61358256,192.17,192.13,5.92480924]
[1761275286697,13.61358256,192.17,192.13,18.93683234]
[1761275286912,3.89915728,192.16,192.14,0.72]
[1761275287215,13.61358256,192.17,192.14,0.72]
[1761275287425,3.89794753,192.16,192.14,0.72]
[1761275287715,13.61358256,192.17,192.14,0.72]
[1761275287887,3.89785972,192.16,192.14,0.72]
[1761275288087,13.61358256,192.17,192.14,0.72]
[1761275288301,3.89786008,192.16,192.15,5.20426749]
[1761275288691,3.89786008,192.16,192.15,5.92426749]
[1761275288886,13.61358256,192.17,192.15,5.92426749]
[1761275289215,13.61358256,192.17,192.16,0.72]
[1761275289690,17.50857249,192.17,192.16,5.92399666]
[1761275290019,17.5086984,192.17,192.16,5.92399666]
[1761275290314,13.61358256,192.17,192.16,5.92399666]
[1761275291119,20.77096832,192.17,192.14,5.20453835]
[1761275291299,2.60332407,192.15,192.14,5.20453835]
[1761275291619,6.49738576,192.15,192.11,5.2053511]
[1761275291788,3.26332407,192.14,192.11,5.2053511]
[1761275292602,0.66,192.14,192.11,5.9153511]
[1761275293723,3.26332407,192.15,192.11,5.9153511]
[1761275294822,2.32560254,192.15,192.11,5.9153511]
[1761275295205,0.66,192.14,192.11,5.9153511]
[1761275295520,2.32560254,192.14,192.11,5.2053511]
[1761275296017,0.66,192.13,192.11,5.2053511]
[1761275296687,2.32560254,192.14,192.11,5.2053511]
[1761275299604,2.32560254,192.14,192.11,5.9153511]
[1761275300218,0.66,192.14,192.11,5.9153511]
[1761275301634,1.66560254,192.13,192.08,15.63273494]
[1761275301928,3.8947485,192.12,192.09,5.20574893]
[1761275302136,0.66,192.13,192.09,5.91574893]
[1761275302318,2.32560254,192.13,192.1,0.71]
[1761275303327,2.32560254,192.13,192.11,5.2053511]
[1761275305511,2.32560254,192.13,192.07,18.2219983]
[1761275305730,2.32560254,192.13,192.08,0.71]
[1761275306551,1.66560254,192.1,192.07,18.2219983]
[1761275306939,1.66560254,192.1,192.07,18.9319983]
[1761275308539,2.35560254,192.1,192.07,18.9319983]
[1761275311862,1.66560254,192.1,192.07,18.9319983]
[1761275312234,2.35560254,192.1,192.07,18.9319983]
[1761275316732,1.66560254,192.11,192.08,0.67]
[1761275317043,2.35560254,192.12,192.08,0.67]
[1761275317240,3.89492429,192.11,192.08,0.67]
[1761275317939,3.89492429,192.11,192.09,5.20589307]
[1761275318953,4.58492429,192.11,192.09,5.20589307]
[1761275320563,0.69,192.11,192.09,5.20589307]
[1761275320951,2.35560254,192.11,192.09,5.20589307]
[1761275321660,0.68,192.15,192.1,0.66]
[1761275321962,0.68,192.15,192.07,5.86616593]
[1761275321963,1.66560254,192.11,192.07,5.86616593]
[1761275322336,2.34560254,192.11,192.07,5.86616593]
[1761275326271,0.68,192.1,192.07,5.86616593]
[1761275326867,2.34560254,192.11,192.08,0.66]
[1761275329766,2.34560254,192.11,192.09,5.20589307]
[1761275334882,0.68,192.1,192.09,5.20589307]
[1761275335865,0.68,192.1,192.07,0.66]
[1761275335866,0.68,192.1,192.08,5.20616409]
[1761275336183,1.66560254,192.11,192.08,5.20616409]
[1761275336362,2.34560254,192.11,192.08,5.86616409]
[1761275344188,3.90125297,192.1,192.08,5.86616409]
[1761275344375,2.34560254,192.11,192.08,5.86616409]
[1761275344572,4.58131659,192.1,192.06,18.22333867]
[1761275344883,4.58131659,192.1,191.96,4.27008099]
[1761275344884,1.66560254,192.07,192.01,0.66]
[1761275345057,3.90140467,192.09,192.01,0.66]
[1761275345058,1.66560254,192.04,192.01,0.66]
[1761275345469,2.34560254,192.04,192.01,0.66]
[1761275346083,2.34560254,192.04,192.01,5.86799242]
[1761275346492,2.34560254,192.04,192.01,5.20799242]
[1761275346790,1.66560254,192.03,192.01,5.86799242]
[1761275347287,1.66560254,192.03,191.99,18.88958461]
[1761275347288,2.34560254,192.03,191.99,18.88958461]
[1761275347495,2.34560254,192.03,192.0,0.66]